fUSD/lending_fUSD_20250213
["ID","MTS","AMOUNT","RATE_DAILY","PERIOD"]
[352921831,1739428802033,300.0,0.00014691,2]
[352921832,1739428810404,-23900.0,0.00014692,2]
[352921833,1739428810433,-150.0,0.00014692,2]
[352921834,1739428810461,-3160.3,0.00014692,2]
[352921835,1739428875801,34552.8268,8.836e-05,2]
[352921836,1739428983846,4640.8436,8.973e-05,2]
[352921837,1739429071808,1627.0,0.00012,5]
[352921838,1739429083118,315.6435,8.836e-05,2]
[352921839,1739429095407,498.4653,8.851e-05,2]
[352921840,1739429194143,-150.0,0.0001353,2]
[352921841,1739429194165,-151.04547321,0.00013858,2]
[352921842,1739429194186,-84.2557069,0.00014404,2]
[352921843,1739429209175,469.8166,8.973e-05,2]
[352921844,1739429241129,-744.04,0.00012499,2]
[352921845,1739429241154,-309.36748132,0.00014404,2]
[352921846,1739429254097,-78.91681178,0.00014404,2]
[352921847,1739429254122,-901.53,0.00014458,2]
[352921848,1739429254145,-1000.0,0.0001452,3]
[352921849,1739429254167,-169.61,0.00014726,2]
[352921850,1739429254188,-17626.5954845,0.00014762,2]
[352921851,1739429254209,-744.04,0.00014763,2]
[352921852,1739429254230,-1049.47,0.00014797,2]
[352921853,1739429254252,-170.98,0.00014972,2]
[352921854,1739429254274,-154.5,0.00015,2]
[352921855,1739429254297,-250.0,0.0001503,2]
[352921856,1739429254320,-1597.1,0.00015142,2]
[352921857,1739429254343,-6162.62698053,0.0001524,2]
[352921858,1739429254367,-280.2523692,0.0001529,2]
[352921859,1739429254391,-304.74891733,0.0001529,2]
[352921860,1739429254413,-1472.80446819,0.0001529,2]
[352921861,1739429254437,-208.73403341,0.0001529,2]
[352921862,1739429254462,-1472.80446817,0.00015291,2]
[352921863,1739429254484,-1472.80446817,0.00015292,2]
[352921864,1739429254507,-1472.80446817,0.00015293,2]
[352921865,1739429254530,-1472.80446817,0.00015294,2]
[352921866,1739429254552,-1472.80446817,0.00015296,2]
[352921867,1739429254574,-1472.80446817,0.00015297,2]
[352921868,1739429254596,-1472.80446817,0.00015298,2]
[352921869,1739429254619,-1472.80446817,0.00015299,2]
[352921870,1739429254640,-300.0,0.00015299,2]
[352921871,1739429254661,-1203.72502334,0.00015299,2]
[352921872,1739429260828,151.7,0.00011749,2]
[352921873,1739429333476,1030.1834,8.851e-05,2]
[352921874,1739429335402,994.8703558,0.0002,120]
[352921875,1739429337911,500.0,8.851e-05,2]
[352921876,1739429356105,-550.0,0.00013,2]
[352921877,1739429356128,-2491.13297612,0.00014586,2]
[352921878,1739429391276,3639.2296,8.836e-05,2]
[352921879,1739429399855,-50000.0,0.000154,5]
[352921882,1739429431997,-66.35702388,0.00014586,2]
[352921884,1739429432007,-600.0,0.00015,2]
[352921886,1739429432018,-3533.95154,0.0001525,2]
[352921888,1739429432027,-492.79,0.0001525,2]
[352921890,1739429432037,-507.75,0.00015299,2]
[352921892,1739429432047,-504.32,0.00015299,2]
[352921893,1739429432056,-3082.32532651,0.00015299,2]
[352921895,1739429432066,-300.0,0.00015299,2]
[352921897,1739429432075,-8569.50400915,0.000153,2]
[352921900,1739429432109,-295.95831041,0.000153,2]
[352921901,1739429432124,-355.79999989,0.000153,2]
[352921902,1739429432136,-1437.5,0.000153,2]
[352921903,1739429432147,-2185.53507333,0.000153,2]
[352921904,1739429432173,-17281.94099901,0.000153,2]
[352921905,1739429432182,-1000.0,0.000153,2]
[352921906,1739429432192,-1000.0,0.000153,2]
[352921907,1739429432202,-1000.0,0.000153,2]
[352921908,1739429432212,-928.0,0.000153,3]
[352921909,1739429432222,-1000.0,0.000153,3]
[352921910,1739429432233,-1000.0,0.000153,2]
[352921911,1739429432242,-1000.0,0.000153,2]
[352921912,1739429432252,-150.0,0.000153,2]
[352921913,1739429432261,-986.09,0.000153,2]
[352921914,1739429432273,-984.65,0.000153,2]
[352921915,1739429432282,-150.0,0.000153,2]
[352921916,1739429432292,-326.44827312,0.000153,2]
[352921917,1739429432302,-368.03,0.000153,2]
[352921918,1739429432311,-1472.80446817,0.000153,2]
[352921919,1739429432321,-23995.0365097,0.00015366,2]
[352921920,1739429432335,-2235.54614608,0.00015366,2]
[352921921,1739429432357,-3769.40734422,0.00015366,2]
[352921922,1739429432368,-14046.68234175,0.00015366,2]
[352921923,1739429432378,-3533.95155,0.0001537,2]
[352921924,1739429432387,-555.44,0.0001538,3]
[352921925,1739429432397,-200.0,0.0001539,2]
[352921926,1739429432406,-200.0,0.0001539,2]
[352921927,1739429432416,-151.0,0.0001539,2]
[352921928,1739429432426,-151.0,0.0001539,2]
[352921929,1739429432435,-151.0,0.0001539,2]
[352921930,1739429432445,-151.0,0.0001539,2]
[352921931,1739429432673,-151.0,0.0001539,2]
[352921932,1739429432683,-151.0,0.0001539,2]
[352921933,1739429432693,-151.0,0.0001539,2]
[352921934,1739429432702,-151.0,0.0001539,2]
[352921935,1739429432712,-151.0,0.0001539,2]
[352921936,1739429432722,-151.0,0.0001539,2]
[352921937,1739429432731,-151.0,0.0001539,2]
[352921938,1739429432740,-151.0,0.0001539,2]
[352921939,1739429432750,-151.0,0.0001539,2]
[352921940,1739429432759,-244.84180271,0.0001539,2]
[352921941,1739429432769,-352.26553227,0.0001539,2]
[352921942,1739429432778,-96745.4564476,0.0001539,2]
[352921943,1739429432788,-196.40695907,0.0001539,2]
[352921944,1739429432797,-500.0,0.00015399,2]
[352921945,1739429432807,-1000.0,0.00015399,2]
[352921946,1739429432817,-524.26043763,0.00015399,2]
[352921947,1739429432827,-999.0,0.00015399,2]
[352921948,1739429432836,-300.0,0.00015399,2]
[352921949,1739429432845,-300.0,0.00015399,2]
[352921950,1739429432854,-386.23,0.00015399,2]
[352921951,1739429432864,-1714.16491129,0.000154,3]
[352921952,1739429432874,-579175.27128382,0.000154,5]
[352921953,1739429432891,-1618.07514123,0.000154,5]
[352921958,1739429437443,-257.6030732,0.000154,2]
[352921959,1739429437453,-7086.70757354,0.000154,5]
[352921961,1739429437464,-1786.46976,0.000154,5]
[352921963,1739429437480,-1052.0,0.000154,5]
[352921964,1739429437507,-5435.2,0.000154,5]
[352921965,1739429437540,-610.95,0.000154,5]
[352921966,1739429437574,-4175.17979758,0.000154,5]
[352921967,1739429437586,-956.61421853,0.000154,5]
[352921968,1739429438058,-270.03274613,0.000154,5]
[352921969,1739429438070,-544.32727247,0.000154,5]
[352921970,1739429438082,-1364.81667089,0.000154,5]
[352921971,1739429438094,-61972.29830137,0.000154,5]
[352921972,1739429438133,-759.499977,0.000154,5]
[352921973,1739429438144,-26659.6638269,0.000154,5]
[352921974,1739429438154,-2127.15630367,0.000154,5]
[352922037,1739429439573,-692.90251238,0.000154,3]
[352922039,1739429439625,-164.17994327,0.000154,3]
[352922040,1739429439635,-1061.38829773,0.000154,5]
[352922041,1739429439800,-1887.21193033,0.000154,5]
[352922042,1739429439813,-1500.47,0.000154,5]
[352922043,1739429439824,-3297.97908494,0.000154,5]
[352922044,1739429439836,-1216.46032323,0.000154,5]
[352922045,1739429439919,-22685.5749001,0.000154,5]
[352922046,1739429439933,-6035.68180111,0.000154,5]
[352922047,1739429439962,-1056.36062843,0.000154,5]
[352922048,1739429439973,-301.64516785,0.000154,5]
[352922049,1739429439985,-2165.89674329,0.000154,5]
[352922050,1739429440033,-652.01062997,0.000154,5]
[352922051,1739429440063,-2666.2,0.000154,5]
[352922084,1739429442797,-521.55,0.000154,5]
[352922085,1739429442809,-4208.19490955,0.000154,5]
[352922086,1739429442821,-4200.04995,0.000154,5]
[352922087,1739429442849,-296.21242944,0.000154,5]
[352922088,1739429442982,-925.16783855,0.000154,5]
[352922089,1739429442993,-926.4000006,0.000154,5]
[352922101,1739429445464,-987.4,0.000154,5]
[352922102,1739429445475,-22935.28736007,0.000154,5]
[352922103,1739429445486,-963.39363119,0.000154,5]
[352922104,1739429445621,-1894.47518095,0.000154,5]
[352922105,1739429445635,-263.99639932,0.000154,5]
[352922106,1739429445647,-770.85019428,0.000154,5]
[352922107,1739429445943,-16586.90431762,0.000154,5]
[352922108,1739429445954,-3849.4776267,0.000154,5]
[352922109,1739429445965,-6643.58809558,0.000154,5]
[352922112,1739429445990,-850240.70737648,0.000154,5]
[352922113,1739429446000,-412.53,0.000154,5]
[352922114,1739429446011,-400.0,0.000154,5]
[352922115,1739429446022,-7809.03247051,0.000154,5]
[352922116,1739429446034,-543.84032399,0.000154,5]
[352922117,1739429446049,-446.50547,0.000154,5]
[352922118,1739429446060,-1051.96977662,0.000154,5]
[352922119,1739429453328,-780000.0,0.000154,5]
[352922120,1739429455237,4484.7743,8.836e-05,2]
[352922121,1739429473985,501.5347,8.851e-05,2]
[352922122,1739429871224,67789.54806147,0.00020777,60]
[352922123,1739430059885,182.37,0.00010137,2]
[352922124,1739430133478,6728.0142,8.836e-05,2]
[352922125,1739430424358,151.7,0.00011234,2]
[352922126,1739430428139,-825.65,0.00012166,2]
[352922127,1739430428164,-642.95633739,0.00013137,4]
[352922128,1739430440122,-290.39005252,0.00013137,4]
[352922129,1739430450250,-202.4907067,0.00013137,4]
[352922130,1739430483992,280.0417,8.699e-05,2]
[352922131,1739430486806,221.9796,8.973e-05,2]
[352922132,1739430495997,2430.68,8.851e-05,2]
[352922133,1739430549131,-864.16290339,0.00013137,4]
[352922134,1739430549152,-7144.25117461,0.00013321,2]
[352922135,1739430551082,-11934.54220071,0.00013321,2]
[352922136,1739430551104,-278.79741596,0.00013321,2]
[352922137,1739430551128,-150.0,0.00013421,2]
[352922138,1739430551150,-12702.77101592,0.00013421,2]
[352922139,1739430551414,-150.0,0.00013858,2]
[352922140,1739430551437,-155.4935628,0.00013858,2]
[352922141,1739430551458,-154.91934717,0.00013858,2]
[352922142,1739430551478,-150.0,0.00014031,2]
[352922143,1739430551497,-889.04,0.00014032,2]
[352922144,1739430551519,-1047.90723744,0.00014034,2]
[352922145,1739430551545,-3445.82276256,0.00014034,2]
[352922146,1739430551566,-922.37,0.00014052,2]
[352922147,1739430551585,-482.97,0.00014082,2]
[352922148,1739430551608,-1500.0,0.00014126,2]
[352922149,1739430551628,-2000.0,0.0001415,2]
[352922150,1739430551648,-200.0,0.00014209,2]
[352922151,1739430551668,-247.45,0.00014351,2]
[352922152,1739430551690,-2000.0,0.00014373,4]
[352922153,1739430551716,-1000.0,0.0001439,2]
[352922154,1739430551739,-825.65,0.0001443,2]
[352922155,1739430551760,-250.0,0.00014446,2]
[352922156,1739430551781,-150.0,0.00014451,2]
[352922157,1739430551800,-150.0,0.00014451,2]
[352922158,1739430551820,-2357.26,0.00014475,2]
[352922159,1739430551841,-476.06,0.00014673,2]
[352922161,1739430566659,196.0,0.00014,4]
[352922163,1739430591359,878.42,0.00014301,2]
[352922164,1739430592461,200.0,0.00014301,2]
[352922165,1739430609898,23900.0,0.00014281,2]
[352922166,1739430617878,219.7441,8.836e-05,2]
[352922170,1739430631821,-878.1,0.00014878,2]
[352922171,1739430631832,-986.09,0.00014878,2]
[352922172,1739430631842,-94.65225498,0.00014878,2]
[352922173,1739430631855,-207.80774502,0.00014878,2]
[352922174,1739430631865,-150.0,0.00014932,2]
[352922175,1739430631875,-300.0,0.00014985,2]
[352922176,1739430631885,-986.09,0.00014986,2]
[352922177,1739430631896,-649.2337328,0.00014986,2]
[352922178,1739430631907,-330.62029001,0.00014986,2]
[352922179,1739430636497,-6.23597719,0.00014986,2]
[352922180,1739430636507,-986.09,0.00014986,2]
[352922181,1739430636516,-1969.66,0.00014986,2]
[352922182,1739430636526,-986.09,0.00014986,2]
[352922183,1739430636536,-986.09,0.00014986,2]
[352922184,1739430636545,-982.25,0.00014986,2]
[352922185,1739430636556,-150.0,0.00014997,2]
[352922186,1739430636566,-768.2248771,0.00015014,2]
[352922187,1739430636578,-110.4551229,0.00015014,2]
[352922188,1739430636587,-167.55,0.00015053,2]
[352922189,1739430636598,-2336.96945493,0.00015053,2]
[352922190,1739430636610,-985.15054507,0.00015053,2]
[352922191,1739430636620,-168.254,0.00015053,2]
[352922192,1739430636630,-284.91,0.00015083,2]
[352922193,1739430636640,-986.09,0.000151,2]
[352922194,1739430636649,-1000.0,0.00015139,2]
[352922195,1739430636659,-229.34545479,0.00015154,2]
[352922196,1739430636670,-25.65454521,0.00015154,2]
[352922197,1739430636679,-1000.0,0.00015245,2]
[352922198,1739430636690,-331.56871043,0.0001527,2]
[352922199,1739430636700,-331.56871039,0.00015273,2]
[352922200,1739430636710,-331.56871039,0.00015277,2]
[352922201,1739430636720,-331.56871039,0.0001528,2]
[352922202,1739430636730,-331.56871039,0.00015283,2]
[352922203,1739430636745,-331.56871039,0.00015287,2]
[352922204,1739430636756,-331.56871039,0.0001529,2]
[352922205,1739430636766,-246.16311202,0.00015293,2]
[352922206,1739430636780,-85.40559837,0.00015293,2]
[352922207,1739430636789,-331.56871039,0.00015297,2]
[352922208,1739430636799,-188.41725628,0.00015297,2]
[352922209,1739430636811,-188.41725624,0.00015297,2]
[352922211,1739430636820,-188.41725624,0.00015298,2]
[352922212,1739430636830,-188.41725624,0.00015298,2]
[352922213,1739430636840,-188.41725624,0.00015298,2]
[352922214,1739430636852,-188.41725624,0.00015299,2]
[352922215,1739430636861,-188.41725624,0.00015299,2]
[352922216,1739430636871,-188.41725624,0.00015299,2]
[352922217,1739430636880,-188.41725624,0.000153,2]
[352922218,1739430636891,-918.62461677,0.000153,2]
[352922219,1739430636900,-559.26111663,0.000153,2]
[352922220,1739430636913,-54961.35950811,0.000153,2]
[352922221,1739430636923,-331.56871039,0.000153,2]
[352922222,1739430636932,-188.41725624,0.000153,2]
[352922223,1739430636942,-16848.0,0.0001537,2]
[352922224,1739430636952,-500.0,0.00015373,2]
[352922225,1739430636962,-500.0,0.00015373,2]
[352922226,1739430636973,-219064.16930365,0.0001539,2]
[352922227,1739430636997,-12448.16541727,0.0001539,2]
[352922228,1739430637009,-1151.55012815,0.0001539,2]
[352922229,1739430637021,-256.7011023,0.0001539,2]
[352922230,1739430637033,-254.46,0.0001539,2]
[352922231,1739430637044,-48880.98478574,0.0001539,2]
[352922234,1739430637637,-5367.28812158,0.0001539,2]
[352922235,1739430637649,-500.0,0.0001539,2]
[352922236,1739430637662,-1920.0,0.0001539,2]
[352922237,1739430637694,-1105.0,0.0001539,2]
[352922238,1739430637746,-2674.09999997,0.0001539,2]
[352922239,1739430637758,-9028.46925709,0.0001539,2]
[352922241,1739430639808,-24331.032684,0.0001539,2]
[352922242,1739430639956,-595.7756343,0.0001539,2]
[352922243,1739430640131,-8383.88176695,0.0001539,2]
[352922244,1739430640142,-195.11849024,0.00015397,2]
[352922245,1739430640152,-1046.0104358,0.00015399,5]
[352922246,1739430640162,-1046.01043579,0.00015399,5]
[352922247,1739430640172,-500.0,0.00015399,2]
[352922248,1739430640181,-999.0,0.00015399,2]
[352922249,1739430640191,-300.0,0.00015399,2]
[352922250,1739430640200,-1549.01629989,0.000154,3]
[352922251,1739430640210,-496.74,0.000154,2]
[352922252,1739430640219,-44970.60296997,0.000154,5]
[352922253,1739430640233,-37431.15663205,0.000154,5]
[352922254,1739430640244,-309.71061,0.000154,5]
[352922256,1739430640500,-333.58518724,0.000154,5]
[352922257,1739430640511,-2744.9374254,0.000154,5]
[352922266,1739430642698,-963.02325225,0.000154,5]
[352922267,1739430642727,-8011.78183786,0.000154,5]
[352922268,1739430642767,-4071.08824451,0.000154,5]
[352922269,1739430643012,-3536.28,0.000154,5]
[352922270,1739430643024,-9847.1,0.000154,5]
[352922276,1739430645682,-662.29312527,0.000154,5]
[352922277,1739430645695,-414169.30713551,0.000154,5]
[352922278,1739430645707,-350.13122922,0.000154,5]
[352922279,1739430645719,-28661.926003,0.000154,5]
[352922280,1739430645733,-9514.47,0.000154,5]
[352922281,1739430645840,-520.38152683,0.000154,5]
[352922282,1739430645853,-498.08950778,0.000154,5]
[352922283,1739430645865,-611.8708808,0.000154,5]
[352922284,1739430645876,-961.1152784,0.000154,5]
[352922285,1739430645887,-4821.96034134,0.000154,5]
[352922286,1739430645994,-1468.81667363,0.000154,5]
[352922290,1739430721101,1259.50878508,0.00014543,2]
[352922291,1739430741969,912.0841,8.836e-05,2]
[352922292,1739430875546,-597.11,0.00016658,30]
[352922293,1739430920963,456.48480584,0.00012,3]
[352922294,1739430932424,-900.0,0.00017,18]
[352922295,1739431015287,-752.89,0.00018,30]
[352922296,1739431070706,6124.4832,8.973e-05,2]
[352922297,1739431237023,150.0,0.0001,2]
[352922298,1739431320056,1884.6443,8.973e-05,2]
[352922299,1739431406875,4320.7209,8.836e-05,2]
[352922300,1739431503732,895.84,0.0001196,2]
[352922301,1739431508837,198382.38293959,0.0001,2]
[352922302,1739431526645,300.44,0.00010137,2]
[352922303,1739431534147,-550.0,0.00013,2]
[352922304,1739431534171,-104.75705502,0.00013465,2]
[352922305,1739431552614,-45.24294498,0.00013465,2]
[352922306,1739431552635,-150.0,0.00013775,2]
[352922307,1739431552658,-150.0,0.00013833,2]
[352922308,1739431552680,-150.0,0.00013833,2]
[352922309,1739431552702,-68.21067239,0.00013833,2]
[352922311,1739431636243,-81.78932761,0.00013833,2]
[352922312,1739431636268,-150.0,0.0001386,2]
[352922313,1739431636289,-42.29358364,0.00013887,2]
[352922314,1739431640099,-783.5780488,0.00013887,2]
[352922315,1739431644090,-684.78898357,0.00013887,2]
[352922316,1739431653113,-339.76938399,0.00013887,2]
[352922317,1739431653135,-462.2561761,0.00013903,2]
[352922325,1739431746082,-167.57,0.00013872,2]
[352922326,1739431746109,-23900.0,0.00013881,2]
[352922327,1739431746133,-2480.7738239,0.00013903,2]
[352922328,1739431746157,-3778.0,0.0001393,2]
[352922329,1739431746182,-1787.0811561,0.00013941,2]
[352922330,1739431746221,-2519.3488439,0.00013941,2]
[352922331,1739431746242,-780.95098723,0.00013951,2]
[352922332,1739431746263,-1322.65034687,0.00013951,2]
[352922333,1739431748140,-57.68965313,0.00013951,2]
[352922334,1739431748165,-176.61,0.00013993,2]
[352922335,1739431748190,-1671.08845888,0.00014,4]
[352922336,1739431748214,-154.41,0.00014017,2]
[352922337,1739431748235,-1500.0,0.00014073,2]
[352922338,1739431748256,-1004.17064154,0.00014074,2]
[352922339,1739431748280,-154.41,0.00014087,2]
[352922340,1739431748301,-1000.0,0.000141,5]
[352922341,1739431748325,-583.66,0.00014109,2]
[352922342,1739431748347,-200.0,0.00014135,2]
[352922343,1739431748368,-250.0,0.00014173,2]
[352922344,1739431748392,-1000.0,0.00014185,2]
[352922345,1739431748416,-2100.0,0.000142,5]
[352922346,1739431748438,-150.0,0.00014217,2]
[352922347,1739431748460,-895.84,0.00014224,2]
[352922348,1739431748480,-500.0,0.00014291,2]
[352922349,1739431748504,-150.0,0.000143,2]
[352922350,1739431748528,-3200.0,0.000143,5]
[352922351,1739431748551,-4300.0,0.000144,5]
[352922352,1739431748575,-5400.0,0.000145,5]
[352922353,1739431748599,-779.6,0.00014541,2]
[352922354,1739431748620,-714.0,0.00014541,2]
[352922355,1739431748641,-414.04121492,0.00014543,2]
[352922356,1739431748661,-256.57,0.00014563,2]
[352922357,1739431748681,-150.0,0.00014563,2]
[352922358,1739431748702,-1000.0,0.000146,5]
[352922359,1739431748724,-150.0,0.00014601,2]
[352922360,1739431748744,-439.94,0.00014641,2]
[352922361,1739431748765,-1550.82,0.00014641,2]
[352922362,1739431748786,-439.94,0.00014641,2]
[352922363,1739431748811,-439.94,0.00014641,2]
[352922364,1739431748832,-330.75255713,0.000147,5]
[352922365,1739431759083,-929.50645374,0.00014072,2]
[352922366,1739431762090,-75.2515029,0.00014072,2]
[352922367,1739431762118,-669.24744287,0.000147,5]
[352922368,1739431762141,-1000.0,0.000148,5]
[352922369,1739431762163,-120.09981725,0.00014831,2]
[352922385,1739431831941,-51.96018275,0.00014831,2]
[352922386,1739431831951,-1000.0,0.000149,5]
[352922387,1739431831960,-301.54,0.00014952,2]
[352922388,1739431831969,-150.0,0.00014986,2]
[352922389,1739431831978,-600.0,0.00015,2]
[352922390,1739431831988,-912.1259198,0.00015091,2]
[352922391,1739431831997,-218.0,0.0001519,2]
[352922392,1739431832007,-480.25886033,0.000152,2]
[352922393,1739431832016,-509.76,0.00015206,2]
[352922394,1739431832025,-508.25,0.00015211,2]
[352922395,1739431832035,-150.0,0.00015216,2]
[352922396,1739431832044,-490.41,0.00015222,2]
[352922397,1739431832053,-499.6,0.00015243,2]
[352922398,1739431832062,-4000.0,0.0001526,2]
[352922399,1739431832071,-394.92,0.0001526,2]
[352922400,1739431832081,-150.0,0.00015269,2]
[352922401,1739431832092,-500.0,0.00015277,2]
[352922402,1739431832102,-164.5199077,0.0001529,2]
[352922403,1739431832113,-202.23921636,0.0001529,2]
[352922404,1739431832123,-175.84236187,0.0001529,2]
[352922405,1739431832139,-377.06372103,0.0001529,2]
[352922406,1739431832150,-594.79336528,0.0001529,2]
[352922407,1739431832159,-175.84236187,0.00015295,2]
[352922408,1739431832169,-279.52748044,0.00015299,2]
[352922409,1739431832178,-279.52748036,0.00015299,2]
[352922410,1739431832187,-279.52748036,0.00015299,2]
[352922411,1739431832198,-279.52748036,0.00015299,2]
[352922412,1739431832207,-279.52748036,0.00015299,2]
[352922413,1739431832216,-279.52748036,0.000153,2]
[352922414,1739431832225,-279.52748036,0.000153,2]
[352922415,1739431832235,-279.52748036,0.000153,2]
[352922416,1739431832245,-279.52748036,0.000153,2]
[352922417,1739431832255,-279.52748036,0.000153,2]
[352922418,1739431832264,-300.0,0.000153,2]
[352922419,1739431832273,-175.84236187,0.000153,2]
[352922420,1739431832282,-4000.0,0.0001533,2]
[352922421,1739431832292,-20022.0,0.0001537,2]
[352922422,1739431832301,-150.0,0.0001537,2]
[352922423,1739431832311,-150.00000001,0.0001537,2]
[352922424,1739431832321,-6448.78920974,0.0001537,2]
[352922425,1739431832332,-685.05424735,0.0001537,2]
[352922426,1739431832344,-498.92723845,0.0001537,2]
[352922427,1739431832356,-18211.67462433,0.0001537,2]
[352922428,1739431832368,-22935.99296211,0.0001537,2]
[352922429,1739431832383,-8608.87673832,0.0001537,2]
[352922430,1739431832392,-308.24353189,0.00015373,2]
[352922431,1739431832401,-500.0,0.00015373,2]
[352922432,1739431832411,-975.05114994,0.0001538,3]
[352922433,1739431832423,-4126.95413859,0.0001538,5]
[352922434,1739431832435,-772.1419729,0.0001538,5]
[352922436,1739431832447,-2617.0777925,0.0001538,5]
[352922438,1739431832458,-818.95921264,0.0001538,5]
[352922440,1739431832469,-310.7802346,0.0001538,5]
[352922449,1739431837706,-730.43,0.00014301,2]
[352922450,1739431837716,-15.17664877,0.0001538,5]
[352922451,1739431837726,-6350.26797717,0.0001538,2]
[352922452,1739431837739,-1943.46898318,0.0001538,2]
[352922453,1739431837750,-742.54283217,0.0001538,2]
[352922454,1739431838067,-1129.33464421,0.0001538,2]
[352922455,1739431838079,-4365.31421469,0.0001538,2]
[352922456,1739431838094,-5495.39642497,0.0001538,2]
[352922461,1739431840140,-271.3230968,0.00014716,2]
[352922462,1739431840152,-334.80555559,0.00014716,2]
[352922463,1739431840163,-80.34134761,0.00014716,2]
[352922464,1739431840172,-487.52557497,0.0001538,3]
[352922465,1739431840182,-432.13307742,0.0001538,2]
[352922466,1739431840206,-2496.97127513,0.0001538,2]
[352922467,1739431840218,-808.9492575,0.0001538,2]
[352922468,1739431840258,-20716.63217578,0.0001538,2]
[352922469,1739431840270,-4517.68761613,0.0001538,2]
[352922470,1739431840367,-690.46440204,0.0001538,2]
[352922471,1739431840427,-19825.6,0.0001538,2]
[352922472,1739431840439,-481.89511946,0.0001538,2]
[352922473,1739431840450,-50119.70942129,0.0001538,2]
[352922474,1739431840515,-985.93,0.0001538,2]
[352922475,1739431840526,-4115.48653958,0.0001538,2]
[352922514,1739431842922,-681.83583395,0.0001538,2]
[352922515,1739431842938,-480.3799,0.0001538,2]
[352922516,1739431842950,-12693.4031788,0.0001538,2]
[352922517,1739431842971,-445.62002,0.0001538,2]
[352922518,1739431842983,-332.85469374,0.0001538,2]
[352922524,1739431843255,-21182.53996619,0.0001538,2]
[352922525,1739431843278,-4743.9744104,0.0001538,2]
[352922526,1739431843290,-381.52,0.0001538,2]
[352922527,1739431843314,-6094.1609,0.0001538,2]
[352922530,1739431845869,-3930.84253382,0.0001538,2]
[352922531,1739431845880,-646.1933147,0.0001538,2]
[352922532,1739431845892,-20784.67852507,0.0001538,2]
[352922533,1739431845936,-652.69287207,0.0001538,2]
[352922534,1739431845947,-536.51088001,0.0001538,2]
[352922535,1739431846088,-484.3126053,0.0001538,2]
[352922542,1739432051703,400.0,8.119e-05,2]
[352922543,1739432051725,400.0,8.119e-05,2]
[352922544,1739432051747,11.972,8.119e-05,2]
[352922545,1739432070195,388.028,8.256e-05,2]
[352922546,1739432070221,400.0,8.256e-05,2]
[352922547,1739432070243,400.0,8.256e-05,2]
[352922548,1739432070266,353.6819,8.256e-05,2]
[352922549,1739432138038,46.3181,0.00011023,2]
[352922550,1739432138067,10449.35014658,0.00011023,2]
[352922551,1739432198218,11944.4659,8.836e-05,2]
[352922553,1739432396013,7417.5605,8.836e-05,2]
[352922555,1739432519157,160.05,0.00011539,2]
[352922556,1739432693648,165.47,0.00011414,2]
[352922557,1739432733118,-890.0,0.0001247,2]
[352922558,1739432733141,-150.0,0.00013427,2]
[352922559,1739432733163,-150.0,0.00013717,2]
[352922560,1739432733190,-150.0,0.00013833,2]
[352922561,1739432733212,-150.0,0.00013833,2]
[352922562,1739432733233,-151.04547321,0.00013833,2]
[352922563,1739432733493,-768.05206393,0.00014381,2]
[352922564,1739432740696,216.29,0.00010137,2]
[352922565,1739432741128,-636.95075687,0.00014381,2]
[352922566,1739432789435,688.05377575,0.00020776,60]
[352922568,1739432811106,-385.30118011,0.00014266,2]
[352922569,1739432847155,-826.44485634,0.00014266,2]
[352922570,1739432950184,-550.0,0.00013,2]
[352922571,1739432950207,-300.0,0.00014265,2]
[352922572,1739432950229,-4198.88419046,0.00014266,2]
[352922573,1739432950256,-18489.36977309,0.00014266,2]